[Event "FIDE WYCC Girls U18 2023"]
[Site "Montesilvano"]
[Date "2023.11.13"]
[Round "1.23"]
[White "Sele, Timea"]
[Black "Matute Escobar, Roxanny"]
[Result "0-1"]
[ECO "E71"]
[WhiteElo "1456"]
[BlackElo "1995"]
[Annotator "NA"]
[PlyCount "80"]
[EventDate "2023.11.13"]
[EventType "swiss"]
[EventCountry "ITA"]
[SourceTitle "playchess.com"]
[Source "ChessBase"]
[SourceQuality "1"]
[TimeControl "40/5400+30:1800+30"]

1. d4 {[%emt 0:00:04]} Nf6 {[%emt 0:00:09]} 2. c4 {[%emt 0:00:15]} g6 {[%emt 0:00:08]} 3. Nc3 {[%emt 0:00:16]} Bg7 {[%emt 0:00:18]} 4. e4 {[%emt 0:00:20]} d6 {[%emt 0:00:07]} 5. h3 {[%emt 0:00:43]} O-O {[%emt 0:00:57]} 6. Be3 {[%emt 0:02:49]} e5 {[%emt 0:02:20]} 7. d5 {[%emt 0:00:56]} a5 {[%emt 0:02:30]} 8. Bd3 {[%emt 0:01:04]} Na6 {[%emt 0:03:08]} 9. Nge2 {[%emt 0:01:28]} Nd7 {[%emt 0:07:55]} 10. g4 {[%emt 0:02:23]} Ndc5 {[%emt 0:00:44]} 11. Bc2 {[%emt 0:03:27]} Nb4 {[%emt 0:08:27]} 12. Bb1 {[%emt 0:06:53]} a4 {[%emt 0:16:41]} 13. Ng3 {[%emt 0:11:00]} a3 {[%emt 0:00:31]} 14. b3 {[%emt 0:19:11]} c6 {[%emt 0:03:50]} 15. O-O {[%emt 0:06:35]} cxd5 {[%emt 0:02:47]} 16. cxd5 {[%emt 0:06:02]} Qh4 {[%emt 0:00:32]} 17. Kg2 {[%emt 0:02:57]} b6 {[%emt 0:04:09]} 18. Nb5 {[%emt 0:06:51]} h5 {[%emt 0:19:13]} 19. Rh1 {[%emt 0:03:33]} hxg4 {[%emt 0:06:12]} 20. hxg4 {[%emt 0:02:27]} Qe7 {[%emt 0:00:26]} 21. Qd2 {[%emt 0:01:25]} Nca6 {[%emt 0:02:02]} 22. Bh6 {[%emt 0:03:04]} f6 {[%emt 0:00:26]} 23. Bd3 {[%emt 0:03:41]} Nxd3 {[%emt 0:01:41]} 24. Qxd3 {[%emt 0:00:11]} Bxg4 {[%emt 0:00:37]} 25. Qe3 {[%emt 0:02:05]} f5 {[%emt 0:02:10]} 26. exf5 {[%emt 0:02:29]} gxf5 {[%emt 0:01:42]} 27. Bxg7 {[%emt 0:04:54]} Qxg7 {[%emt 0:02:16]} 28. Qh6 {[%emt 0:00:35]} e4 {[%emt 0:06:15]} 29. Qxg7+ {[%emt 0:03:11]} Kxg7 {[%emt 0:00:06]} 30. Nd4 {[%emt 0:00:31]} Kf6 {[%emt 0:01:53]} 31. Rh6+ {[%emt 0:01:22]} Ke5 {[%emt 0:01:59]} 32. Nb5 {[%emt 0:01:24]} Bf3+ {[%emt 0:00:27]} 33. Kg1 {[%emt 0:00:34]} Rh8 {[%emt 0:01:54]} 34. Re6+ {[%emt 0:01:41]} Kxd5 {[%emt 0:00:22]} 35. Rxd6+ {[%emt 0:00:26]} Kc5 {[%emt 0:00:38]} 36. Rf6 {[%emt 0:01:02]} Kxb5 {[%emt 0:00:29]} 37. Rxf5+ {[%emt 0:00:18]} Kb4 {[%emt 0:00:58]} 38. Rc1 {[%emt 0:00:28]} Rac8 {[%emt 0:00:24]} 39. Re1 {[%emt 0:00:29]} Rcg8 {[%emt 0:00:53]} 40. Re3 {[%emt 0:00:00]} Rh1# {[%emt 0:00:00]} 0-1

[Event "FIDE WYCC Girls U18 2023"]
[Site "Montesilvano"]
[Date "2023.11.13"]
[Round "1.24"]
[White "Nguyen Hong Nhung"]
[Black "Galli, Maria Vittoria"]
[Result "1-0"]
[ECO "C45"]
[WhiteElo "1975"]
[BlackElo "1452"]
[Annotator "NA RC"]
[PlyCount "43"]
[EventDate "2023.11.13"]
[EventType "swiss"]
[EventCountry "ITA"]
[SourceTitle "playchess.com"]
[Source "ChessBase"]
[SourceQuality "1"]
[TimeControl "40/5400+30:1800+30"]

1. e4 {[%emt 0:00:02]} e5 {[%emt 0:00:07]} 2. Nf3 {[%emt 0:00:07]} Nc6 {[%emt 0:00:13]} 3. d4 {[%emt 0:00:07]} exd4 {[%emt 0:00:08]} 4. Nxd4 {[%emt 0:00:06]} Bc5 {[%emt 0:00:12]} 5. Be3 {[%emt 0:00:09]} Qf6 {[%emt 0:00:20]} 6. c3 {[%emt 0:00:06]} Nge7 {[%emt 0:00:14]} 7. Bc4 {[%emt 0:00:08]} d6 {[%emt 0:00:51]} 8. O-O {[%emt 0:02:16]} O-O {[%emt 0:01:12]} 9. Nxc6 {[%emt 0:00:15]} Nxc6 {[%emt 0:00:46]} 10. Bxc5 {[%emt 0:00:08]} dxc5 {[%emt 0:00:14]} 11. f4 {[%emt 0:00:20]} Be6 {[%emt 0:04:03]} 12. Na3 {[%emt 0:02:35]} Bxc4 {[%emt 0:03:59]} 13. Nxc4 {[%emt 0:00:26]} b5 {[%emt 0:01:32]} 14. Ne3 {[%emt 0:02:00]} Qd6 {[%emt 0:05:02]} 15. Qf3 {[%emt 0:04:37]} Rad8 {[%emt 0:10:15]} 16. Rad1 {[%emt 0:07:06]} Qe6 {[%emt 0:01:12]} 17. Nd5 {[%emt 0:00:47]} a6 {[%emt 0:07:29]} 18. Qe3 {[%emt 0:06:15]} Ne7 {[%emt 0:09:07]} 19. f5 {[%emt 0:03:53]} Nxd5 {[%emt 0:03:14]} 20. fxe6 {[%emt 0:00:57]} Nxe3 {[%emt 0:00:33]} 21. exf7+ {[%emt 0:00:10]} Kh8 {[%emt 0:03:57]} 22. Rxd8 {[%emt 0:00:12]} 1-0

[Event "FIDE WYCC Girls U18 2023"]
[Site "Montesilvano"]
[Date "2023.11.13"]
[Round "1.25"]
[White "Monteiro, Helen Ramazzotte"]
[Black "Barwinska, Ewa"]
[Result "0-1"]
[ECO "A21"]
[WhiteElo "1447"]
[BlackElo "1974"]
[Annotator "NA"]
[PlyCount "68"]
[EventDate "2023.11.13"]
[EventType "swiss"]
[EventCountry "ITA"]
[SourceTitle "playchess.com"]
[Source "ChessBase"]
[SourceQuality "1"]
[TimeControl "40/5400+30:1800+30"]

1. c4 {[%emt 0:00:09]} e5 {[%emt 0:00:12]} 2. Nc3 {[%emt 0:00:24]} Bb4 {[%emt 0:00:12]} 3. g3 {[%emt 0:00:43]} Bxc3 {[%emt 0:00:14]} 4. bxc3 {[%emt 0:00:45]} Nc6 {[%emt 0:01:55]} 5. Bg2 {[%emt 0:00:58]} d6 {[%emt 0:00:47]} 6. d4 {[%emt 0:02:08]} Bd7 {[%emt 0:00:55]} 7. Nf3 {[%emt 0:01:42]} f5 {[%emt 0:04:52]} 8. O-O {[%emt 0:02:29]} e4 {[%emt 0:07:35]} 9. Nd2 {[%emt 0:02:53]} Nf6 {[%emt 0:01:51]} 10. a4 {[%emt 0:04:26]} O-O {[%emt 0:03:50]} 11. a5 {[%emt 0:03:27]} b6 {[%emt 0:05:19]} 12. Nb3 {[%emt 0:02:43]} Qe7 {[%emt 0:02:25]} 13. Qc2 {[%emt 0:03:44]} Qf7 {[%emt 0:03:52]} 14. c5 {[%emt 0:04:24]} Be6 {[%emt 0:05:24]} 15. Rb1 {[%emt 0:06:56]} Bxb3 {[%emt 0:03:41]} 16. Rxb3 {[%emt 0:01:03]} Nxa5 {[%emt 0:01:07]} 17. Rb4 {[%emt 0:04:53]} d5 {[%emt 0:09:31]} 18. Rd1 {[%emt 0:03:53]} Nc4 {[%emt 0:03:21]} 19. Bf1 {[%emt 0:03:16]} a5 {[%emt 0:05:40]} 20. Rb1 {[%emt 0:05:01]} bxc5 {[%emt 0:01:19]} 21. dxc5 {[%emt 0:00:34]} Qe7 {[%emt 0:01:16]} 22. c6 {[%emt 0:01:14]} Qc5 {[%emt 0:02:20]} 23. Qa4 {[%emt 0:05:44]} Ra6 {[%emt 0:03:27]} 24. Ra1 {[%emt 0:03:01]} Qxc6 {[%emt 0:03:45]} 25. Qxc6 {[%emt 0:02:14]} Rxc6 {[%emt 0:00:08]} 26. Bg5 {[%emt 0:00:14]} Nb6 {[%emt 0:03:00]} 27. Rxa5 {[%emt 0:02:24]} Rxc3 {[%emt 0:00:18]} 28. e3 {[%emt 0:02:18]} Ng4 {[%emt 0:05:06]} 29. h3 {[%emt 0:01:22]} Ne5 {[%emt 0:00:41]} 30. Bf4 {[%emt 0:02:15]} Nf3+ {[%emt 0:00:31]} 31. Kg2 {[%emt 0:01:01]} g5 {[%emt 0:00:21]} 32. Bxc7 {[%emt 0:00:49]} Rxc7 {[%emt 0:00:09]} 33. Rb5 {[%emt 0:00:40]} Rf6 {[%emt 0:00:49]} 34. Rdb1 {[%emt 0:01:53]} Rcc6 {[%emt 0:00:24]} 0-1

[Event "FIDE WYCC Girls U18 2023"]
[Site "Montesilvano"]
[Date "2023.11.13"]
[Round "1.26"]
[White "Blanquet, Camille"]
[Black "Stagno, Milena"]
[Result "1-0"]
[ECO "E07"]
[WhiteElo "1953"]
[BlackElo "1444"]
[Annotator "NA"]
[PlyCount "59"]
[EventDate "2023.11.13"]
[EventType "swiss"]
[EventCountry "ITA"]
[SourceTitle "playchess.com"]
[Source "ChessBase"]
[SourceQuality "1"]
[TimeControl "40/5400+30:1800+30"]

1. d4 {[%emt 0:00:06]} d5 {[%emt 0:00:13]} 2. c4 {[%emt 0:00:24]} c6 {[%emt 0:00:32]} 3. Nf3 {[%emt 0:00:24]} Nf6 {[%emt 0:01:11]} 4. Nc3 {[%emt 0:00:29]} e6 {[%emt 0:01:16]} 5. g3 {[%emt 0:00:42]} Be7 {[%emt 0:05:06]} 6. Bg2 {[%emt 0:00:53]} Nbd7 {[%emt 0:01:45]} 7. O-O {[%emt 0:03:13]} O-O {[%emt 0:01:03]} 8. Qd3 {[%emt 0:00:50]} Re8 {[%emt 0:08:22]} 9. Bf4 {[%emt 0:04:33]} Nh5 {[%emt 0:06:02]} 10. Be5 {[%emt 0:06:29]} f6 {[%emt 0:06:33]} 11. Bf4 {[%emt 0:00:32]} Nxf4 {[%emt 0:01:41]} 12. gxf4 {[%emt 0:00:13]} Bd6 {[%emt 0:01:46]} 13. e3 {[%emt 0:04:04]} e5 {[%emt 0:01:50]} 14. cxd5 {[%emt 0:07:29]} cxd5 {[%emt 0:01:38]} 15. dxe5 {[%emt 0:01:20]} fxe5 {[%emt 0:00:20]} 16. Qxd5+ {[%emt 0:00:46]} Kh8 {[%emt 0:05:32]} 17. Qxd6 {[%emt 0:00:08]} exf4 {[%emt 0:00:35]} 18. exf4 {[%emt 0:01:15]} Qa5 {[%emt 0:05:40]} 19. Rfe1 {[%emt 0:01:59]} Rd8 {[%emt 0:04:02]} 20. Rad1 {[%emt 0:02:50]} Rg8 {[%emt 0:17:02]} 21. Rd5 {[%emt 0:03:36]} Qb6 {[%emt 0:01:45]} 22. Ne5 {[%emt 0:01:02]} Nxe5 {[%emt 0:00:51]} 23. fxe5 {[%emt 0:01:24]} Qxb2 {[%emt 0:05:35]} 24. Ne4 {[%emt 0:00:32]} Bf5 {[%emt 0:01:48]} 25. Ng5 {[%emt 0:01:41]} Bg6 {[%emt 0:01:29]} 26. Rd2 {[%emt 0:03:45]} Qc3 {[%emt 0:03:56]} 27. Re3 {[%emt 0:02:56]} Qa1+ {[%emt 0:01:59]} 28. Rd1 {[%emt 0:01:24]} Qxa2 {[%emt 0:00:26]} 29. Qxg6 {[%emt 0:01:50]} hxg6 {[%emt 0:01:13]} 30. Rh3# {[%emt 0:00:07]} 1-0

[Event "FIDE WYCC Girls U18 2023"]
[Site "Montesilvano"]
[Date "2023.11.13"]
[Round "1.27"]
[White "Serina Arafat"]
[Black "Follana Albelda, Lucia"]
[Result "0-1"]
[ECO "A45"]
[WhiteElo "1413"]
[BlackElo "1946"]
[Annotator "NA"]
[PlyCount "94"]
[EventDate "2023.11.13"]
[EventType "swiss"]
[EventCountry "ITA"]
[SourceTitle "playchess.com"]
[Source "ChessBase"]
[SourceQuality "1"]
[TimeControl "40/5400+30:1800+30"]

1. d4 {[%emt 0:00:04]} Nf6 {[%emt 0:00:18]} 2. e3 {[%emt 0:00:29]} e6 {[%emt 0:01:35]} 3. Bd3 {[%emt 0:01:06]} b6 {[%emt 0:01:09]} 4. Nf3 {[%emt 0:02:21]} Bb7 {[%emt 0:00:22]} 5. Nbd2 {[%emt 0:02:50]} g6 {[%emt 0:00:56]} 6. O-O {[%emt 0:03:00]} Bg7 {[%emt 0:00:53]} 7. b3 {[%emt 0:01:49]} O-O {[%emt 0:01:37]} 8. Bb2 {[%emt 0:02:24]} d6 {[%emt 0:00:36]} 9. Re1 {[%emt 0:09:01]} Nfd7 {[%emt 0:04:23]} 10. a3 {[%emt 0:10:28]} Qe7 {[%emt 0:02:51]} 11. e4 {[%emt 0:09:05]} e5 {[%emt 0:01:51]} 12. d5 {[%emt 0:02:51]} f5 {[%emt 0:03:54]} 13. c4 {[%emt 0:05:52]} f4 {[%emt 0:03:52]} 14. h3 {[%emt 0:04:51]} Rf7 {[%emt 0:15:44]} 15. b4 {[%emt 0:08:04]} Bc8 {[%emt 0:01:51]} 16. Be2 {[%emt 0:03:12]} Bf8 {[%emt 0:04:31]} 17. Nh2 {[%emt 0:02:49]} Nf6 {[%emt 0:01:20]} 18. Ng4 {[%emt 0:00:35]} Nbd7 {[%emt 0:01:24]} 19. Rc1 {[%emt 0:05:10]} h5 {[%emt 0:04:14]} 20. Nh2 {[%emt 0:03:12]} Rg7 {[%emt 0:01:04]} 21. Rc3 {[%emt 0:04:59]} Qf7 {[%emt 0:02:59]} 22. g4 {[%emt 0:03:55]} fxg3 {[%emt 0:02:34]} 23. fxg3 {[%emt 0:00:22]} Nh7 {[%emt 0:01:56]} 24. Rf1 {[%emt 0:01:02]} Ndf6 {[%emt 0:02:01]} 25. Rcf3 {[%emt 0:01:28]} Bxh3 {[%emt 0:01:10]} 26. R1f2 {[%emt 0:03:26]} Bd7 {[%emt 0:01:47]} 27. Qf1 {[%emt 0:01:26]} Be7 {[%emt 0:01:02]} 28. Bc1 {[%emt 0:00:36]} g5 {[%emt 0:00:56]} 29. Nb1 {[%emt 0:02:54]} Qg6 {[%emt 0:00:50]} 30. Nc3 {[%emt 0:02:00]} g4 {[%emt 0:00:19]} 31. Re3 {[%emt 0:00:34]} Ng5 {[%emt 0:02:02]} 32. Kh1 {[%emt 0:01:02]} Rf8 {[%emt 0:00:44]} 33. Bd3 {[%emt 0:00:43]} Nh3 {[%emt 0:00:23]} 34. Rfe2 {[%emt 0:00:49]} Nxd5 {[%emt 0:01:06]} 35. Qg2 {[%emt 0:01:09]} Nxc3 {[%emt 0:01:00]} 36. Re1 {[%emt 0:00:53]} Rf2 {[%emt 0:00:30]} 37. Qxf2 {[%emt 0:00:34]} Nxf2+ {[%emt 0:00:06]} 38. Kg1 {[%emt 0:00:05]} Nfd1 {[%emt 0:01:02]} 39. Bd2 {[%emt 0:00:46]} Bg5 {[%emt 0:00:50]} 40. Nf1 {[%emt 0:00:00]} Nxe3 {[%emt 0:00:00]} 41. Nxe3 {[%emt 0:00:44]} Na4 {[%emt 0:01:05]} 42. Rf1 {[%emt 0:01:00]} h4 {[%emt 0:00:52]} 43. gxh4 {[%emt 0:00:48]} Bf4 {[%emt 0:03:26]} 44. Rf2 {[%emt 0:00:41]} g3 {[%emt 0:00:20]} 45. Rg2 {[%emt 0:00:20]} Qh5 {[%emt 0:00:21]} 46. Nf5 {[%emt 0:00:37]} Bxf5 {[%emt 0:00:12]} 47. exf5 {[%emt 0:00:06]} Qd1+ {[%emt 0:00:08]} 0-1

[Event "FIDE WYCC Girls U18 2023"]
[Site "Montesilvano"]
[Date "2023.11.13"]
[Round "1.28"]
[White "Wan, Qian"]
[Black "Darweeche, Roaa"]
[Result "1-0"]
[ECO "D02"]
[WhiteElo "1945"]
[BlackElo "1406"]
[Annotator "NA"]
[PlyCount "53"]
[EventDate "2023.11.13"]
[EventType "swiss"]
[EventCountry "ITA"]
[SourceTitle "playchess.com"]
[Source "ChessBase"]
[SourceQuality "1"]
[TimeControl "40/5400+30:1800+30"]

1. d4 {[%emt 0:00:05]} d5 {[%emt 0:00:14]} 2. Bf4 {[%emt 0:00:18]} Nf6 {[%emt 0:01:02]} 3. Nf3 {[%emt 0:00:10]} Bg4 {[%emt 0:03:13]} 4. Ne5 {[%emt 0:04:36]} Bh5 {[%emt 0:02:02]} 5. c4 {[%emt 0:01:34]} e6 {[%emt 0:08:41]} 6. Nc3 {[%emt 0:00:46]} c6 {[%emt 0:06:04]} 7. Qb3 {[%emt 0:02:37]} Qb6 {[%emt 0:01:08]} 8. c5 {[%emt 0:00:27]} Qxb3 9. axb3 {[%emt 0:00:04]} Nbd7 {[%emt 0:04:36]} 10. Nd3 {[%emt 0:05:50]} Bg6 {[%emt 0:02:14]} 11. e3 {[%emt 0:01:00]} Nh5 {[%emt 0:00:46]} 12. Bc7 {[%emt 0:10:57]} Rc8 {[%emt 0:01:51]} 13. g4 {[%emt 0:03:15]} Rxc7 {[%emt 0:02:23]} 14. gxh5 {[%emt 0:00:05]} Bxh5 {[%emt 0:00:36]} 15. Rxa7 {[%emt 0:00:04]} Be7 {[%emt 0:06:43]} 16. b4 {[%emt 0:03:32]} Bf6 {[%emt 0:06:30]} 17. Ra8+ {[%emt 0:03:01]} Bd8 {[%emt 0:00:11]} 18. b5 {[%emt 0:00:31]} b6 {[%emt 0:02:31]} 19. bxc6 {[%emt 0:00:47]} Rxc6 {[%emt 0:00:18]} 20. Nb4 {[%emt 0:00:45]} Rc7 {[%emt 0:00:41]} 21. Nb5 {[%emt 0:00:11]} Rxc5 {[%emt 0:03:55]} 22. dxc5 {[%emt 0:00:10]} Nxc5 {[%emt 0:01:05]} 23. Nc6 {[%emt 0:01:31]} Nb7 {[%emt 0:02:19]} 24. Rb8 {[%emt 0:02:11]} Kd7 {[%emt 0:00:48]} 25. Ne5+ {[%emt 0:00:24]} Ke8 {[%emt 0:01:08]} 26. Rxb7 {[%emt 0:00:09]} f6 {[%emt 0:00:58]} 27. Nc6 {[%emt 0:01:01]} 1-0

[Event "FIDE WYCC Girls U18 2023"]
[Site "Montesilvano"]
[Date "2023.11.13"]
[Round "1.29"]
[White "Mohd Azman, Farihah Nur Aisyah"]
[Black "Sipos, Stefania"]
[Result "0-1"]
[ECO "A48"]
[WhiteElo "1379"]
[BlackElo "1932"]
[Annotator "ChessBase"]
[PlyCount "172"]
[EventDate "2023.11.13"]
[EventType "swiss"]
[EventCountry "ITA"]
[SourceTitle "playchess.com"]
[Source "ChessBase"]
[SourceQuality "1"]
[TimeControl "40/5400+30:1800+30"]

1. d4 {[%emt 0:00:03]} Nf6 {[%emt 0:00:08]} 2. Nf3 {[%emt 0:00:14]} g6 {[%emt 0:00:18]} 3. Bf4 {[%emt 0:00:32]} Bg7 {[%emt 0:00:21]} 4. e3 {[%emt 0:00:42]} O-O {[%emt 0:00:24]} 5. Nbd2 {[%emt 0:01:49]} d6 {[%emt 0:01:39]} 6. h3 {[%emt 0:02:19]} c5 {[%emt 0:03:56]} 7. c3 {[%emt 0:04:22]} Nc6 {[%emt 0:03:50]} 8. Be2 {[%emt 0:05:23]} Re8 {[%emt 0:09:14]} 9. Nb3 {[%emt 0:06:31]} b6 {[%emt 0:06:42]} 10. d5 {[%emt 0:09:39]} Nb8 {[%emt 0:05:23]} 11. g4 {[%emt 0:15:59]} Bb7 {[%emt 0:08:54]} 12. c4 {[%emt 0:01:22]} e6 {[%emt 0:08:17]} 13. dxe6 {[%emt 0:04:49]} Rxe6 {[%emt 0:01:06]} 14. O-O {[%emt 0:00:52]} Ne8 {[%emt 0:12:56]} 15. Qd2 {[%emt 0:08:30]} Nc6 {[%emt 0:04:15]} 16. Rad1 {[%emt 0:06:03]} Ne5 {[%emt 0:06:41]} 17. Ng5 {[%emt 0:06:32]} Re7 {[%emt 0:03:03]} 18. Bxe5 {[%emt 0:02:43]} Bxe5 {[%emt 0:10:13]} 19. Bf3 {[%emt 0:04:38]} Bxf3 {[%emt 0:02:55]} 20. Nxf3 {[%emt 0:00:06]} Bg7 {[%emt 0:01:57]} 21. Nc1 {[%emt 0:02:03]} Rd7 {[%emt 0:03:41]} 22. Nd3 {[%emt 0:07:08]} Qf6 {[%emt 0:01:54]} 23. Kg2 {[%emt 0:01:17]} Rad8 {[%emt 0:00:52]} 24. g5 {[%emt 0:01:05]} Qe7 {[%emt 0:00:47]} 25. Nf4 {[%emt 0:00:35]} Nc7 {[%emt 0:00:52]} 26. Qc2 {[%emt 0:02:34]} d5 {[%emt 0:00:51]} 27. cxd5 {[%emt 0:01:38]} Nxd5 {[%emt 0:00:05]} 28. Nxd5 {[%emt 0:00:18]} Rxd5 {[%emt 0:00:05]} 29. h4 {[%emt 0:00:43]} Rxd1 {[%emt 0:00:41]} 30. Rxd1 {[%emt 0:00:26]} Rxd1 {[%emt 0:00:20]} 31. Qxd1 {[%emt 0:00:04]} Bxb2 {[%emt 0:00:24]} 32. Qe2 {[%emt 0:00:55]} Bg7 {[%emt 0:01:07]} 33. Qa6 {[%emt 0:00:29]} Qc7 {[%emt 0:00:47]} 34. Qc4 {[%emt 0:00:43]} Qc6 {[%emt 0:00:42]} 35. Qf4 {[%emt 0:00:30]} c4 {[%emt 0:00:57]} 36. Qb8+ {[%emt 0:02:30]} Bf8 {[%emt 0:00:05]} 37. Kg3 {[%emt 0:01:02]} c3 {[%emt 0:01:07]} 38. Nd4 {[%emt 0:00:21]} Qd6+ {[%emt 0:01:07]} 39. Qxd6 {[%emt 0:00:08]} Bxd6+ {[%emt 0:00:02]} 40. Kf3 {[%emt 0:00:00]} b5 {[%emt 0:00:00]} 41. Ke2 {[%emt 0:01:58]} b4 {[%emt 0:02:25]} 42. Kd3 {[%emt 0:02:09]} Be5 {[%emt 0:05:48]} 43. Nc6 {[%emt 0:01:18]} Bd6 {[%emt 0:06:28]} 44. Nxa7 {[%emt 0:00:43]} Kf8 {[%emt 0:02:04]} 45. Nc6 {[%emt 0:04:00]} Bc5 {[%emt 0:04:37]} 46. Ne5 {[%emt 0:01:14]} Ke7 {[%emt 0:02:20]} 47. Nf3 {[%emt 0:03:59]} Ke6 {[%emt 0:04:39]} 48. Ne1 {[%emt 0:02:15]} Kd5 {[%emt 0:01:29]} 49. Nc2 {[%emt 0:00:33]} Bd6 {[%emt 0:02:13]} 50. f4 {[%emt 0:05:28]} Be7 {[%emt 0:03:07]} 51. Ne1 {[%emt 0:07:10]} Kc5 {[%emt 0:00:52]} 52. Nc2 {[%emt 0:00:49]} Kb5 {[%emt 0:00:57]} 53. e4 {[%emt 0:00:44]} Bd6 {[%emt 0:00:27]} 54. f5 {[%emt 0:02:40]} Bg3 {[%emt 0:00:39]} 55. fxg6 {[%emt 0:03:56]} hxg6 {[%emt 0:00:17]} 56. Kd4 {[%emt 0:00:38]} Bxh4 {[%emt 0:00:25]} 57. Kd5 {[%emt 0:00:47]} Bxg5 {[%emt 0:00:32]} 58. e5 {[%emt 0:00:21]} Bf4 {[%emt 0:00:41]} 59. Ke4 {[%emt 0:00:31]} g5 {[%emt 0:00:32]} 60. Kd5 {[%emt 0:00:24]} Ka4 {[%emt 0:00:34]} 61. Kc4 {[%emt 0:00:25]} Bxe5 {[%emt 0:00:35]} 62. Nxb4 {[%emt 0:00:09]} Ka3 {[%emt 0:00:22]} 63. Nd3 {[%emt 0:00:29]} Bf6 {[%emt 0:00:35]} 64. Ne1 {[%emt 0:00:34]} Kxa2 {[%emt 0:00:27]} 65. Nc2 {[%emt 0:00:40]} Kb2 {[%emt 0:00:26]} 66. Kd3 {[%emt 0:00:08]} Be5 {[%emt 0:00:31]} 67. Ne3 {[%emt 0:00:15]} Bg7 {[%emt 0:00:43]} 68. Nd1+ {[%emt 0:00:31]} Kc1 {[%emt 0:00:20]} 69. Nxc3 {[%emt 0:00:27]} Bxc3 {[%emt 0:00:08]} 70. Kxc3 {[%emt 0:00:02]} f6 {[%emt 0:00:40]} 71. Kd3 {[%emt 0:00:11]} Kb2 {[%emt 0:00:18]} 72. Ke4 {[%emt 0:00:13]} Kc3 {[%emt 0:00:11]} 73. Kf3 {[%emt 0:00:27]} Kd3 {[%emt 0:00:12]} 74. Kf2 {[%emt 0:00:13]} Ke4 {[%emt 0:00:19]} 75. Ke2 {[%emt 0:00:11]} Kf4 {[%emt 0:00:10]} 76. Kf2 {[%emt 0:00:06]} f5 {[%emt 0:00:11]} 77. Kf1 {[%emt 0:00:06]} Kf3 {[%emt 0:00:08]} 78. Kg1 {[%emt 0:00:05]} Ke2 {[%emt 0:00:07]} 79. Kg2 {[%emt 0:00:09]} f4 {[%emt 0:00:07]} 80. Kg1 {[%emt 0:00:00]} f3 {[%emt 0:00:00]} 81. Kh2 {[%emt 0:00:00]} f2 {[%emt 0:00:00]} 82. Kg3 {[%emt 0:00:00]} f1=Q {[%emt 0:00:00]} 83. Kg4 {[%emt 0:00:00]} Qf4+ {[%emt 0:00:00]} 84. Kh3 {[%emt 0:00:00]} Qh4+ {[%emt 0:00:00]} 85. Kg2 {[%emt 0:00:00]} Qg4+ {[%emt 0:00:00]} 86. Kh2 {[%emt 0:00:00]} Kf2 {[%emt 0:00:00]} 0-1

[Event "FIDE WYCC Girls U18 2023"]
[Site "Montesilvano"]
[Date "2023.11.13"]
[Round "1.30"]
[White "Groeschel, Karoline"]
[Black "Latifah, Darmaki"]
[Result "0-1"]
[ECO "C88"]
[WhiteElo "1924"]
[BlackElo "1367"]
[Annotator "NA"]
[PlyCount "134"]
[EventDate "2023.11.13"]
[EventType "swiss"]
[EventCountry "ITA"]
[SourceTitle "playchess.com"]
[Source "ChessBase"]
[SourceQuality "1"]
[TimeControl "40/5400+30:1800+30"]

1. e4 {[%emt 0:00:02]} e5 {[%emt 0:00:09]} 2. Nf3 {[%emt 0:00:05]} Nc6 {[%emt 0:00:07]} 3. Bb5 {[%emt 0:00:05]} a6 {[%emt 0:00:10]} 4. Ba4 {[%emt 0:00:05]} Nf6 {[%emt 0:00:11]} 5. O-O {[%emt 0:00:06]} Be7 {[%emt 0:00:17]} 6. Re1 {[%emt 0:00:18]} b5 {[%emt 0:00:07]} 7. Bb3 {[%emt 0:00:04]} d6 {[%emt 0:00:09]} 8. c3 {[%emt 0:00:03]} Na5 {[%emt 0:01:43]} 9. Bc2 {[%emt 0:00:21]} c5 {[%emt 0:00:14]} 10. d4 {[%emt 0:00:58]} Qc7 {[%emt 0:00:20]} 11. d5 {[%emt 0:02:32]} O-O {[%emt 0:00:16]} 12. h3 {[%emt 0:00:02]} c4 {[%emt 0:00:18]} 13. b4 {[%emt 0:02:03]} Nb7 {[%emt 0:10:36]} 14. a4 {[%emt 0:05:23]} Bd7 {[%emt 0:00:07]} 15. Be3 {[%emt 0:02:05]} bxa4 {[%emt 0:04:41]} 16. Na3 {[%emt 0:13:39]} a5 {[%emt 0:10:20]} 17. b5 {[%emt 0:06:02]} Nc5 {[%emt 0:03:18]} 18. Bxc5 {[%emt 0:15:09]} Qxc5 {[%emt 0:00:12]} 19. Bxa4 {[%emt 0:00:26]} Rfc8 {[%emt 0:05:29]} 20. Nd2 {[%emt 0:02:49]} Be8 {[%emt 0:23:44]} 21. Ndxc4 {[%emt 0:04:15]} Nd7 {[%emt 0:01:09]} 22. Qd3 {[%emt 0:10:37]} Bd8 {[%emt 0:12:06]} 23. Qe3 {[%emt 0:13:23]} Bb6 {[%emt 0:18:43]} 24. Qe2 {[%emt 0:17:28]} Qc7 {[%emt 0:01:11]} 25. Nxb6 {[%emt 0:00:49]} Nxb6 {[%emt 0:00:18]} 26. Nb1 {[%emt 0:00:16]} Nc4 {[%emt 0:01:46]} 27. Rc1 {[%emt 0:01:25]} Qc5 {[%emt 0:01:01]} 28. Ra2 {[%emt 0:02:50]} Bxb5 {[%emt 0:02:24]} 29. Bxb5 {[%emt 0:00:54]} Qxb5 {[%emt 0:00:01]} 30. Nd2 {[%emt 0:00:22]} Qc5 {[%emt 0:01:43]} 31. Nb3 {[%emt 0:00:40]} Qb6 {[%emt 0:00:59]} 32. Nd2 {[%emt 0:00:23]} Qc5 {[%emt 0:00:02]} 33. Ra4 {[%emt 0:00:40]} Nb6 {[%emt 0:01:42]} 34. Nb3 {[%emt 0:00:25]} Qc7 {[%emt 0:01:04]} 35. Rxa5 {[%emt 0:00:37]} Rxa5 {[%emt 0:00:03]} 36. Nxa5 {[%emt 0:00:08]} Nxd5 {[%emt 0:00:17]} 37. exd5 {[%emt 0:00:53]} Qxa5 {[%emt 0:00:01]} 38. c4 {[%emt 0:00:21]} Rb8 {[%emt 0:01:43]} 39. c5 {[%emt 0:00:34]} Qa3 {[%emt 0:00:03]} 40. Qc2 {[%emt 0:00:00]} Rb2 {[%emt 0:00:00]} 41. cxd6 {[%emt 0:15:04]} Rxc2 42. Rxc2 {[%emt 0:00:06]} Qxd6 {[%emt 0:13:12]} 43. Rc8+ {[%emt 0:03:43]} Qf8 {[%emt 0:00:03]} 44. Rxf8+ {[%emt 0:00:09]} Kxf8 {[%emt 0:00:01]} 45. f4 {[%emt 0:01:55]} f6 {[%emt 0:12:13]} 46. fxe5 {[%emt 0:00:23]} fxe5 {[%emt 0:00:07]} 47. Kf2 {[%emt 0:00:08]} Ke7 {[%emt 0:02:20]} 48. Ke3 {[%emt 0:00:23]} Kd6 {[%emt 0:00:54]} 49. Ke4 {[%emt 0:00:05]} g5 {[%emt 0:06:07]} 50. g3 {[%emt 0:06:09]} h5 {[%emt 0:00:35]} 51. g4 {[%emt 0:00:04]} h4 {[%emt 0:00:19]} 52. Kf5 {[%emt 0:00:44]} Kxd5 {[%emt 0:00:05]} 53. Kxg5 {[%emt 0:00:04]} e4 {[%emt 0:01:23]} 54. Kxh4 {[%emt 0:02:03]} e3 {[%emt 0:00:15]} 55. Kg3 {[%emt 0:00:06]} Ke4 {[%emt 0:01:02]} 56. Kg2 {[%emt 0:00:28]} Kd3 {[%emt 0:00:17]} 57. Kf1 {[%emt 0:00:07]} Kd2 {[%emt 0:00:07]} 58. g5 {[%emt 0:00:43]} e2+ {[%emt 0:00:05]} 59. Kg2 {[%emt 0:00:03]} e1=Q {[%emt 0:00:04]} 60. Kf3 {[%emt 0:00:13]} Qh4 {[%emt 0:00:21]} 61. g6 {[%emt 0:00:25]} Qf6+ {[%emt 0:00:07]} 62. Kg3 {[%emt 0:00:16]} Qxg6+ {[%emt 0:00:05]} 63. Kh4 {[%emt 0:00:19]} Qf6+ {[%emt 0:00:18]} 64. Kg4 {[%emt 0:00:03]} Ke3 {[%emt 0:00:05]} 65. h4 {[%emt 0:00:12]} Qg6+ {[%emt 0:00:13]} 66. Kh3 {[%emt 0:00:15]} Kf3 {[%emt 0:00:01]} 67. h5 {[%emt 0:00:10]} Qg3# {[%emt 0:00:06]} 0-1